[Event "Late-Titled-Tuesday-Blitz-March-19-2024"]
[Site "Chess.com"]
[Date "2024.03.19"]
[Round "6"]
[White "ACollins05"]
[Black "Godzillator"]
[Result "1/2-1/2"]
[WhiteElo "2548"]
[BlackElo "2405"]
[TimeControl "180+1"]
[EndTime "15:06:37 PDT"]
[Termination "Game drawn by repetition"]

1. d4 {[%clk 0:03:00.9]} 1... d5 {[%clk 0:02:57.2]} 2. c4 {[%clk 0:03:00.7]}
2... e6 {[%clk 0:02:56.4]} 3. Nf3 {[%clk 0:03:01.3]} 3... Nf6 {[%clk 0:02:56.1]}
4. g3 {[%clk 0:03:01.7]} 4... c6 {[%clk 0:02:54.9]} 5. Bg2 {[%clk 0:03:00.3]}
5... Be7 {[%clk 0:02:53.1]} 6. O-O {[%clk 0:03:00.8]} 6... O-O {[%clk
0:02:53.2]} 7. Nc3 {[%clk 0:03:01.3]} 7... b6 {[%clk 0:02:52.3]} 8. Ne5 {[%clk
0:02:50.6]} 8... Bb7 {[%clk 0:02:52.4]} 9. e4 {[%clk 0:02:45.7]} 9... dxe4
{[%clk 0:02:51.3]} 10. Nxe4 {[%clk 0:02:45.6]} 10... Qc8 {[%clk 0:02:41.5]} 11.
Bg5 {[%clk 0:02:40]} 11... Nbd7 {[%clk 0:02:41.4]} 12. Nxd7 {[%clk 0:02:39.8]}
12... Qxd7 {[%clk 0:02:40.1]} 13. Nxf6+ {[%clk 0:02:39.6]} 13... Bxf6 {[%clk
0:02:40]} 14. Bxf6 {[%clk 0:02:39]} 14... gxf6 {[%clk 0:02:40.4]} 15. Qg4+
{[%clk 0:02:39.2]} 15... Kh8 {[%clk 0:02:40.6]} 16. Rfd1 {[%clk 0:02:39.7]}
16... Rad8 {[%clk 0:02:33.3]} 17. Rac1 {[%clk 0:02:29.7]} 17... Qe7 {[%clk
0:01:54.9]} 18. Qh4 {[%clk 0:02:27.5]} 18... Kg7 {[%clk 0:01:47.5]} 19. Be4
{[%clk 0:02:19.4]} 19... h6 {[%clk 0:01:42.5]} 20. Qg4+ {[%clk 0:02:17.6]} 20...
Kh8 {[%clk 0:01:42.6]} 21. Qf4 {[%clk 0:02:08.9]} 21... Kg7 {[%clk 0:01:41.6]}
22. Qg4+ {[%clk 0:02:03]} 22... Kh8 {[%clk 0:01:41.4]} 23. Qh4 {[%clk
0:02:03.2]} 23... Kg7 {[%clk 0:01:41.1]} 24. Rc3 {[%clk 0:02:03.7]} 24... c5
{[%clk 0:01:37.9]} 25. Bxb7 {[%clk 0:01:59.2]} 25... Qxb7 {[%clk 0:01:37.1]} 26.
Qg4+ {[%clk 0:01:58.8]} 26... Kh8 {[%clk 0:01:36.7]} 27. Qf4 {[%clk 0:01:59.3]}
27... Kg7 {[%clk 0:01:36.2]} 28. Rf3 {[%clk 0:01:56.7]} 28... Qe7 {[%clk
0:01:26.5]} 29. d5 {[%clk 0:01:53.5]} 29... exd5 {[%clk 0:01:23.3]} 30. cxd5
{[%clk 0:01:52.2]} 30... Rd6 {[%clk 0:01:23.4]} 31. Re3 {[%clk 0:01:42.4]} 31...
Qd7 {[%clk 0:01:20.9]} 32. g4 {[%clk 0:01:32.5]} 32... Rd8 {[%clk 0:01:19.7]}
33. Rh3 {[%clk 0:01:31.6]} 33... Rh8 {[%clk 0:01:18.2]} 34. Rh5 {[%clk
0:01:31.2]} 34... Qe7 {[%clk 0:01:16.8]} 35. Kf1 {[%clk 0:01:26.1]} 35... b5
{[%clk 0:01:15.4]} 36. Re1 {[%clk 0:01:21.8]} 36... Qd7 {[%clk 0:01:15.1]} 37.
Qe4 {[%clk 0:01:15.6]} 37... c4 {[%clk 0:01:09.2]} 38. Re3 {[%clk 0:01:12.2]}
38... a5 {[%clk 0:01:02.8]} 39. Reh3 {[%clk 0:01:11.7]} 39... a4 {[%clk
0:00:46.8]} 40. a3 {[%clk 0:01:06.5]} 40... Rh7 {[%clk 0:00:40.4]} 41. Ke2
{[%clk 0:00:50.5]} 41... Rh8 {[%clk 0:00:38.4]} 42. Kd2 {[%clk 0:00:50.5]} 42...
Rd8 {[%clk 0:00:29.5]} 43. Kc3 {[%clk 0:00:20.3]} 43... Rxd5 {[%clk 0:00:29.6]}
44. Rxd5 {[%clk 0:00:14.6]} 44... Qxd5 {[%clk 0:00:29.3]} 45. Qxd5 {[%clk
0:00:14.3]} 45... Rxd5 {[%clk 0:00:29.2]} 46. Re3 {[%clk 0:00:14.6]} 46... Kg6
{[%clk 0:00:26]} 47. h3 {[%clk 0:00:14.2]} 47... Kg5 {[%clk 0:00:24.3]} 48. Re7
{[%clk 0:00:14.5]} 48... Kh4 {[%clk 0:00:23.3]} 49. Rxf7 {[%clk 0:00:14.8]}
49... Kxh3 {[%clk 0:00:23.6]} 50. Rxf6 {[%clk 0:00:15.3]} 50... Kxg4 {[%clk
0:00:20.4]} 51. Rxh6 {[%clk 0:00:15.2]} 51... Kf3 {[%clk 0:00:20.8]} 52. Rf6+
{[%clk 0:00:15]} 52... Ke2 {[%clk 0:00:20.9]} 53. f4 {[%clk 0:00:14.6]} 53...
Rd3+ {[%clk 0:00:21.3]} 54. Kc2 {[%clk 0:00:13.5]} 54... Rd2+ {[%clk 0:00:17.8]}
55. Kc3 {[%clk 0:00:11.4]} 55... Rd3+ {[%clk 0:00:18.1]} 56. Kc2 {[%clk
0:00:10.1]} 56... Rd2+ {[%clk 0:00:18.5]} 57. Kb1 {[%clk 0:00:10.4]} 57... Rd4
{[%clk 0:00:15]} 58. Rf5 {[%clk 0:00:07.7]} 58... Kd3 {[%clk 0:00:11.8]} 59.
Rxb5 {[%clk 0:00:07.3]} 59... Rxf4 {[%clk 0:00:12]} 60. Rb4 {[%clk 0:00:07.6]}
60... Rf1+ {[%clk 0:00:10.9]} 61. Ka2 {[%clk 0:00:07.6]} 61... Rf2 {[%clk
0:00:10.7]} 62. Kb1 {[%clk 0:00:03.1]} 62... c3 {[%clk 0:00:09.4]} 63. bxc3
{[%clk 0:00:02.7]} 63... Kxc3 {[%clk 0:00:09.7]} 64. Rxa4 {[%clk 0:00:03.2]}
64... Kb3 {[%clk 0:00:10.2]} 65. Rb4+ {[%clk 0:00:03.6]} 65... Kxa3 {[%clk
0:00:10.5]} 66. Rb8 {[%clk 0:00:04.1]} 66... Rf1+ {[%clk 0:00:09.8]} 67. Kc2
{[%clk 0:00:03.8]} 67... Rf2+ {[%clk 0:00:10.4]} 68. Kb1 {[%clk 0:00:04.4]}
68... Rf1+ {[%clk 0:00:10.8]} 69. Kc2 {[%clk 0:00:04.9]} 69... Rf2+ {[%clk
0:00:11.3]} 70. Kb1 {[%clk 0:00:05.3]} 1/2-1/2

[Event "Late-Titled-Tuesday-Blitz-March-19-2024"]
[Site "Chess.com"]
[Date "2024.03.19"]
[Round "6"]
[White "Noki102"]
[Black "Smiechu"]
[Result "1-0"]
[WhiteElo "2580"]
[BlackElo "2425"]
[TimeControl "180+1"]
[EndTime "15:06:39 PDT"]
[Termination "Noki102 won by resignation"]

1. d4 {[%clk 0:03:00.9]} 1... Nf6 {[%clk 0:02:59]} 2. g3 {[%clk 0:02:55.6]} 2...
c5 {[%clk 0:02:58.6]} 3. dxc5 {[%clk 0:02:54.2]} 3... e6 {[%clk 0:02:57.4]} 4.
Nd2 {[%clk 0:02:52.3]} 4... Bxc5 {[%clk 0:02:57.1]} 5. Nb3 {[%clk 0:02:52.9]}
5... Be7 {[%clk 0:02:55.4]} 6. Bg2 {[%clk 0:02:52.8]} 6... O-O {[%clk
0:02:55.5]} 7. e4 {[%clk 0:02:52]} 7... d5 {[%clk 0:02:54.8]} 8. exd5 {[%clk
0:02:51.5]} 8... Nxd5 {[%clk 0:02:55]} 9. Ne2 {[%clk 0:02:51.8]} 9... Nc6 {[%clk
0:02:54.8]} 10. O-O {[%clk 0:02:51.8]} 10... Qc7 {[%clk 0:02:51.6]} 11. Nf4
{[%clk 0:02:50.4]} 11... Rd8 {[%clk 0:02:46.8]} 12. Nxd5 {[%clk 0:02:41.3]}
12... exd5 {[%clk 0:02:46.8]} 13. Bf4 {[%clk 0:02:38.6]} 13... Bd6 {[%clk
0:02:43.1]} 14. Bxd6 {[%clk 0:02:34.7]} 14... Qxd6 {[%clk 0:02:43.2]} 15. Nd4
{[%clk 0:02:35]} 15... Nxd4 {[%clk 0:02:41.5]} 16. Qxd4 {[%clk 0:02:34.7]} 16...
Be6 {[%clk 0:02:40.5]} 17. c3 {[%clk 0:02:34]} 17... Rac8 {[%clk 0:02:40]} 18.
Rad1 {[%clk 0:02:31.2]} 18... b6 {[%clk 0:02:38.6]} 19. Rd2 {[%clk 0:02:24.6]}
19... Rc4 {[%clk 0:02:34]} 20. Qe3 {[%clk 0:02:23.2]} 20... Qc5 {[%clk
0:02:25.9]} 21. Rfd1 {[%clk 0:02:17.1]} 21... Qxe3 {[%clk 0:02:20]} 22. fxe3
{[%clk 0:02:18]} 22... Re8 {[%clk 0:02:00.1]} 23. Bxd5 {[%clk 0:02:12.3]} 23...
Bxd5 {[%clk 0:01:59.1]} 24. Rxd5 {[%clk 0:02:13.2]} 24... h6 {[%clk 0:01:54.8]}
25. Kf2 {[%clk 0:02:11.1]} 25... Re6 {[%clk 0:01:50.2]} 26. Rd8+ {[%clk
0:02:08]} 26... Kh7 {[%clk 0:01:50]} 27. R1d7 {[%clk 0:02:06.2]} 27... Rf6+
{[%clk 0:01:49.7]} 28. Ke2 {[%clk 0:02:05.4]} 28... Ra4 {[%clk 0:01:49.7]} 29.
a3 {[%clk 0:02:04.3]} 29... Ra5 {[%clk 0:01:49.9]} 30. Rd5 {[%clk 0:02:01.6]}
30... Rf5 {[%clk 0:01:45.1]} 31. e4 {[%clk 0:01:49.9]} 31... Rh5 {[%clk
0:01:40.2]} 32. h4 {[%clk 0:01:42.4]} 32... Re5 {[%clk 0:01:36.8]} 33. Kd3
{[%clk 0:01:37.3]} 33... Kg6 {[%clk 0:01:34.5]} 34. Kd4 {[%clk 0:01:35.5]} 34...
f6 {[%clk 0:01:27.8]} 35. R8d7 {[%clk 0:01:30.2]} 35... Ra4+ {[%clk 0:01:24.8]}
36. c4 {[%clk 0:01:19.5]} 36... b5 {[%clk 0:01:20.2]} 37. Rc7 {[%clk 0:01:14.8]}
37... bxc4 {[%clk 0:01:15.6]} 38. Rxe5 {[%clk 0:01:04.2]} 38... c3+ {[%clk
0:01:06.5]} 39. Kxc3 {[%clk 0:00:54.8]} 39... fxe5 {[%clk 0:01:05.8]} 40. Kd3
{[%clk 0:00:51.5]} 40... Rd4+ {[%clk 0:01:04.7]} 41. Ke3 {[%clk 0:00:51.6]}
41... Ra4 {[%clk 0:01:01.8]} 42. g4 {[%clk 0:00:48.4]} 42... Kf6 {[%clk
0:00:59.5]} 43. Rc6+ {[%clk 0:00:36.9]} 43... Ke7 {[%clk 0:00:57.5]} 44. Rc5
{[%clk 0:00:37.4]} 44... Ke6 {[%clk 0:00:55.9]} 45. g5 {[%clk 0:00:34.7]} 45...
hxg5 {[%clk 0:00:55]} 46. hxg5 {[%clk 0:00:34.9]} 46... Kd6 {[%clk 0:00:51.8]}
47. Rd5+ {[%clk 0:00:34.4]} 47... Ke6 {[%clk 0:00:52]} 48. Rb5 {[%clk
0:00:33.4]} 48... Ra6 {[%clk 0:00:48.4]} 49. Rb7 {[%clk 0:00:32.3]} 49... Ra4
{[%clk 0:00:41.9]} 50. Rxg7 {[%clk 0:00:31.5]} 50... a6 {[%clk 0:00:38.5]} 51.
Rg6+ {[%clk 0:00:31.2]} 51... Ke7 {[%clk 0:00:38.2]} 52. Rb6 {[%clk 0:00:31.5]}
52... Ra5 {[%clk 0:00:37.2]} 53. g6 {[%clk 0:00:30.4]} 53... Kf8 {[%clk
0:00:33.1]} 54. Kf3 {[%clk 0:00:30]} 54... Ra4 {[%clk 0:00:30.9]} 55. Re6 {[%clk
0:00:28.6]} 55... Kg7 {[%clk 0:00:30.5]} 56. Rxe5 {[%clk 0:00:28.7]} 56... Kxg6
{[%clk 0:00:30.4]} 57. Re6+ {[%clk 0:00:27.9]} 57... Kg5 {[%clk 0:00:29.7]} 58.
Rb6 {[%clk 0:00:27.1]} 58... Ra5 {[%clk 0:00:27.8]} 59. Ke3 {[%clk 0:00:26.6]}
59... Ra4 {[%clk 0:00:21.7]} 60. e5 {[%clk 0:00:20.6]} 60... Kf5 {[%clk
0:00:21.8]} 61. e6 {[%clk 0:00:19.4]} 61... Kf6 {[%clk 0:00:19.6]} 62. Kd3
{[%clk 0:00:19]} 62... Ke7 {[%clk 0:00:19.7]} 63. Kc3 {[%clk 0:00:18.8]} 63...
a5 {[%clk 0:00:16.9]} 64. Ra6 {[%clk 0:00:17.2]} 64... Re4 {[%clk 0:00:14.9]}
65. Rxa5 {[%clk 0:00:16.6]} 65... Kxe6 {[%clk 0:00:15.2]} 66. Rc5 {[%clk
0:00:16.4]} 66... Kd6 {[%clk 0:00:15.4]} 67. Rc4 {[%clk 0:00:15.6]} 67... Re2
{[%clk 0:00:15]} 68. Kb3 {[%clk 0:00:15.6]} 68... Kd5 {[%clk 0:00:14.9]} 69. Rc1
{[%clk 0:00:15.3]} 69... Re3+ {[%clk 0:00:13.9]} 70. Ka2 {[%clk 0:00:15]} 70...
Re2 {[%clk 0:00:14.3]} 71. a4 {[%clk 0:00:15.2]} 71... Kd6 {[%clk 0:00:14.8]}
72. Ka3 {[%clk 0:00:14.4]} 72... Re3+ {[%clk 0:00:14.1]} 73. b3 {[%clk
0:00:14.7]} 73... Kd5 {[%clk 0:00:13.8]} 74. a5 {[%clk 0:00:14.8]} 74... Re2
{[%clk 0:00:14]} 75. Ka4 {[%clk 0:00:14.1]} 75... Ra2+ {[%clk 0:00:14.1]} 76.
Kb5 {[%clk 0:00:14.1]} 76... Ra3 {[%clk 0:00:14.1]} 77. b4 {[%clk 0:00:14.3]}
1-0

[Event "Late-Titled-Tuesday-Blitz-March-19-2024"]
[Site "Chess.com"]
[Date "2024.03.19"]
[Round "6"]
[White "Supelyel"]
[Black "Likvidator228"]
[Result "1/2-1/2"]
[WhiteElo "2390"]
[BlackElo "2557"]
[TimeControl "180+1"]
[EndTime "15:06:39 PDT"]
[Termination "Game drawn by repetition"]

1. c4 {[%clk 0:02:56.7]} 1... c6 {[%clk 0:02:57.6]} 2. g3 {[%clk 0:02:55.5]}
2... d5 {[%clk 0:02:58]} 3. Bg2 {[%clk 0:02:55.2]} 3... Nf6 {[%clk 0:02:58.7]}
4. Nf3 {[%clk 0:02:55.2]} 4... Bf5 {[%clk 0:02:57.8]} 5. b3 {[%clk 0:02:52]}
5... e6 {[%clk 0:02:58.1]} 6. Bb2 {[%clk 0:02:52.2]} 6... h6 {[%clk 0:02:58.7]}
7. d3 {[%clk 0:02:52.2]} 7... Nbd7 {[%clk 0:02:59]} 8. Nbd2 {[%clk 0:02:50.6]}
8... Be7 {[%clk 0:02:59.2]} 9. a3 {[%clk 0:02:50.8]} 9... O-O {[%clk 0:02:59.1]}
10. O-O {[%clk 0:02:51.4]} 10... a5 {[%clk 0:02:59.5]} 11. Rc1 {[%clk 0:02:49]}
11... Rc8 {[%clk 0:02:58.6]} 12. Rc2 {[%clk 0:02:48]} 12... Re8 {[%clk
0:02:58.3]} 13. Qa1 {[%clk 0:02:48.6]} 13... Bh7 {[%clk 0:02:48.4]} 14. Rfc1
{[%clk 0:02:49]} 14... Bd6 {[%clk 0:02:47.2]} 15. c5 {[%clk 0:02:10.7]} 15...
Bc7 {[%clk 0:02:46.1]} 16. b4 {[%clk 0:02:07.7]} 16... axb4 {[%clk 0:02:44.4]}
17. axb4 {[%clk 0:02:08.6]} 17... Ra8 {[%clk 0:02:44.4]} 18. Qb1 {[%clk
0:02:07.7]} 18... e5 {[%clk 0:02:43.9]} 19. Bh3 {[%clk 0:01:51.6]} 19... e4
{[%clk 0:02:40.2]} 20. Ne1 {[%clk 0:01:25.4]} 20... exd3 {[%clk 0:02:28.8]} 21.
exd3 {[%clk 0:01:22]} 21... Ne5 {[%clk 0:02:03.2]} 22. Rc3 {[%clk 0:01:10.7]}
22... h5 {[%clk 0:01:31.6]} 23. Rb3 {[%clk 0:01:04.4]} 23... h4 {[%clk
0:01:27.9]} 24. Bd4 {[%clk 0:01:03.8]} 24... hxg3 {[%clk 0:01:26.3]} 25. hxg3
{[%clk 0:01:03.7]} 25... Neg4 {[%clk 0:01:10.9]} 26. Nef3 {[%clk 0:00:53.8]}
26... Ne5 {[%clk 0:00:57.2]} 27. Bf1 {[%clk 0:00:53.6]} 27... Nxf3+ {[%clk
0:00:56.7]} 28. Nxf3 {[%clk 0:00:54.4]} 28... Qd7 {[%clk 0:00:52.4]} 29. Qb2
{[%clk 0:00:47.5]} 29... Qf5 {[%clk 0:00:39.9]} 30. Nh4 {[%clk 0:00:43.2]} 30...
Qg5 {[%clk 0:00:40.1]} 31. Nf3 {[%clk 0:00:42.1]} 31... Qg6 {[%clk 0:00:36.4]}
32. Bg2 {[%clk 0:00:35.8]} 32... Nd7 {[%clk 0:00:21]} 33. b5 {[%clk 0:00:29.3]}
33... f6 {[%clk 0:00:12.6]} 34. b6 {[%clk 0:00:29.4]} 34... Be5 {[%clk
0:00:11.3]} 35. Ra1 {[%clk 0:00:28.6]} 35... Bxd4 {[%clk 0:00:10]} 36. Qxd4
{[%clk 0:00:21.1]} 36... Rxa1+ {[%clk 0:00:10]} 37. Qxa1 {[%clk 0:00:21.2]}
37... Nxc5 {[%clk 0:00:10.8]} 38. Rc3 {[%clk 0:00:21.3]} 38... Nxd3 {[%clk
0:00:10.9]} 39. Qa7 {[%clk 0:00:19.8]} 39... Qf7 {[%clk 0:00:10.1]} 40. Nd4
{[%clk 0:00:18.3]} 40... Ne5 {[%clk 0:00:09.7]} 41. Qa1 {[%clk 0:00:16.2]} 41...
Be4 {[%clk 0:00:09.5]} 42. Ra3 {[%clk 0:00:16]} 42... Bxg2 {[%clk 0:00:09.4]}
43. Kxg2 {[%clk 0:00:16.9]} 43... Nc4 {[%clk 0:00:09.5]} 44. Ra8 {[%clk
0:00:16.9]} 44... Rxa8 {[%clk 0:00:08.1]} 45. Qxa8+ {[%clk 0:00:16.7]} 45... Kh7
{[%clk 0:00:09]} 46. Qd8 {[%clk 0:00:16.8]} 46... Ne5 {[%clk 0:00:06.3]} 47. Qc7
{[%clk 0:00:16.8]} 47... Kg6 {[%clk 0:00:05]} 48. Qc8 {[%clk 0:00:16]} 48... Nc4
{[%clk 0:00:04.6]} 49. Qf5+ {[%clk 0:00:14.6]} 49... Kh6 {[%clk 0:00:05.1]} 50.
Qh3+ {[%clk 0:00:14.5]} 50... Kg6 {[%clk 0:00:05.6]} 51. Qg4+ {[%clk 0:00:13.9]}
51... Kh7 {[%clk 0:00:05.6]} 52. Qh4+ {[%clk 0:00:13.8]} 52... Kg8 {[%clk
0:00:05.9]} 53. Qg4 {[%clk 0:00:14.3]} 53... Qe7 {[%clk 0:00:05.5]} 54. Qc8+
{[%clk 0:00:14.3]} 54... Kf7 {[%clk 0:00:05.9]} 55. Nf5 {[%clk 0:00:14.5]} 55...
Qe4+ {[%clk 0:00:05.5]} 56. Kh2 {[%clk 0:00:14.9]} 56... g6 {[%clk 0:00:04.1]}
57. Qd7+ {[%clk 0:00:13]} 57... Kf8 {[%clk 0:00:04.7]} 58. Qg7+ {[%clk
0:00:11.5]} 58... Ke8 {[%clk 0:00:05.2]} 59. Qxg6+ {[%clk 0:00:11.6]} 59... Kd7
{[%clk 0:00:05]} 60. Qf7+ {[%clk 0:00:11.9]} 60... Kd8 {[%clk 0:00:04.4]} 61.
Qxf6+ {[%clk 0:00:10.6]} 61... Kd7 {[%clk 0:00:04.1]} 62. Qf7+ {[%clk
0:00:10.2]} 62... Kd8 {[%clk 0:00:04.7]} 63. Ng7 {[%clk 0:00:10]} 63... Qh7+
{[%clk 0:00:04.4]} 64. Kg1 {[%clk 0:00:08.7]} 64... Qb1+ {[%clk 0:00:04.5]} 65.
Kg2 {[%clk 0:00:09]} 65... Qe4+ {[%clk 0:00:05.1]} 66. Kh2 {[%clk 0:00:07.7]}
66... Qh7+ {[%clk 0:00:05.3]} 67. Kg1 {[%clk 0:00:06.7]} 67... Qb1+ {[%clk
0:00:05.5]} 68. Kg2 {[%clk 0:00:06.8]} 68... Qe4+ {[%clk 0:00:06]} 69. Kh2
{[%clk 0:00:06.1]} 1/2-1/2

[Event "Late-Titled-Tuesday-Blitz-March-19-2024"]
[Site "Chess.com"]
[Date "2024.03.19"]
[Round "6"]
[White "jaramsdal"]
[Black "YEIKO2017"]
[Result "1-0"]
[WhiteElo "2296"]
[BlackElo "2468"]
[TimeControl "180+1"]
[EndTime "15:06:41 PDT"]
[Termination "jaramsdal won on time"]

1. Nf3 {[%clk 0:03:00.9]} 1... c5 {[%clk 0:02:42.9]} 2. g3 {[%clk 0:03:00.7]}
2... g6 {[%clk 0:02:43.2]} 3. Bg2 {[%clk 0:03:01]} 3... Bg7 {[%clk 0:02:43.8]}
4. O-O {[%clk 0:03:01.5]} 4... Nc6 {[%clk 0:02:44.3]} 5. c3 {[%clk 0:02:57.4]}
5... e5 {[%clk 0:02:43.4]} 6. d4 {[%clk 0:02:36.9]} 6... exd4 {[%clk 0:02:37.1]}
7. cxd4 {[%clk 0:02:37.1]} 7... cxd4 {[%clk 0:02:32.8]} 8. Bg5 {[%clk
0:02:27.3]} 8... Nge7 {[%clk 0:02:28.8]} 9. Nbd2 {[%clk 0:02:03.8]} 9... h6
{[%clk 0:02:25.2]} 10. Bxe7 {[%clk 0:01:51.5]} 10... Qxe7 {[%clk 0:02:24.5]} 11.
Nb3 {[%clk 0:01:39.6]} 11... Qf6 {[%clk 0:02:07.8]} 12. Qd3 {[%clk 0:01:31]}
12... d6 {[%clk 0:02:03.5]} 13. Rfd1 {[%clk 0:01:26.2]} 13... Bf5 {[%clk
0:02:02.7]} 14. Qb5 {[%clk 0:01:26.8]} 14... O-O {[%clk 0:02:01.3]} 15. Nfxd4
{[%clk 0:01:20.4]} 15... Nxd4 {[%clk 0:01:55.9]} 16. Nxd4 {[%clk 0:01:21.3]}
16... Bg4 {[%clk 0:01:50.5]} 17. h3 {[%clk 0:01:00.2]} 17... Bc8 {[%clk
0:01:30.2]} 18. e3 {[%clk 0:01:00.4]} 18... Qe5 {[%clk 0:01:28.4]} 19. Rd2
{[%clk 0:00:54.2]} 19... a6 {[%clk 0:01:28.1]} 20. Qb4 {[%clk 0:00:51.9]} 20...
Qc5 {[%clk 0:01:23.4]} 21. a3 {[%clk 0:00:42.4]} 21... a5 {[%clk 0:01:18.2]} 22.
Qb3 {[%clk 0:00:36.4]} 22... a4 {[%clk 0:01:10.8]} 23. Qb4 {[%clk 0:00:35.8]}
23... Ra6 {[%clk 0:01:07.1]} 24. Rad1 {[%clk 0:00:32.8]} 24... Qxb4 {[%clk
0:00:58.3]} 25. axb4 {[%clk 0:00:32.7]} 25... Rb6 {[%clk 0:00:59.2]} 26. b5
{[%clk 0:00:24.2]} 26... Bxd4 {[%clk 0:00:58.4]} 27. Rxd4 {[%clk 0:00:23.5]}
27... Rxb5 {[%clk 0:00:59.3]} 28. Rxa4 {[%clk 0:00:21]} 28... Rxb2 {[%clk
0:00:58.6]} 29. Rxd6 {[%clk 0:00:20.9]} 29... b5 {[%clk 0:00:50.9]} 30. Ra7
{[%clk 0:00:20.1]} 30... Be6 {[%clk 0:00:46.6]} 31. Bd5 {[%clk 0:00:19.5]} 31...
Bxh3 {[%clk 0:00:42.5]} 32. Rxg6+ {[%clk 0:00:19]} 32... Kh7 {[%clk 0:00:42.5]}
33. Rf6 {[%clk 0:00:19.3]} 33... Kg7 {[%clk 0:00:36.6]} 34. Rfxf7+ {[%clk
0:00:19.3]} 34... Rxf7 {[%clk 0:00:37.1]} 35. Rxf7+ {[%clk 0:00:19.9]} 35... Kg6
{[%clk 0:00:37.6]} 36. Rb7 {[%clk 0:00:20]} 36... b4 {[%clk 0:00:34.9]} 37. Be4+
{[%clk 0:00:17.2]} 37... Kf6 {[%clk 0:00:32.2]} 38. Rb6+ {[%clk 0:00:17.6]}
38... Ke5 {[%clk 0:00:31.7]} 39. Bg2 {[%clk 0:00:17.1]} 39... Be6 {[%clk
0:00:25.7]} 40. Bf3 {[%clk 0:00:16.1]} 40... b3 {[%clk 0:00:25.4]} 41. Kg2
{[%clk 0:00:16.1]} 41... Rd2 {[%clk 0:00:22.2]} 42. Bh5 {[%clk 0:00:06.1]} 42...
b2 {[%clk 0:00:22]} 43. Bg6 {[%clk 0:00:06.5]} 43... Ba2 {[%clk 0:00:16.2]} 44.
Bh7 {[%clk 0:00:06.5]} 44... h5 {[%clk 0:00:15.3]} 45. Bg6 {[%clk 0:00:06.8]}
45... Kd5 {[%clk 0:00:15.3]} 46. Bh7 {[%clk 0:00:05.6]} 46... Kc5 {[%clk
0:00:15.5]} 47. Rb8 {[%clk 0:00:06.2]} 47... Bc4 {[%clk 0:00:15.9]} 48. Bg6
{[%clk 0:00:05.8]} 48... Bb5 {[%clk 0:00:16]} 49. Bf5 {[%clk 0:00:04]} 49... Rd5
{[%clk 0:00:14.7]} 50. Be4 {[%clk 0:00:04]} 50... Rd1 {[%clk 0:00:14.1]} 51. Bg6
{[%clk 0:00:03.3]} 51... b1=Q {[%clk 0:00:13.6]} 52. Bxb1 {[%clk 0:00:02.9]}
52... Rxb1 {[%clk 0:00:14.5]} 53. Rh8 {[%clk 0:00:02.8]} 53... Be2 {[%clk
0:00:14.3]} 54. f3 {[%clk 0:00:02.5]} 54... Rb2 {[%clk 0:00:14]} 55. Rxh5+
{[%clk 0:00:01.9]} 55... Kc4 {[%clk 0:00:11.4]} 56. Rh4+ {[%clk 0:00:02.3]}
56... Kd3 {[%clk 0:00:10.8]} 57. Rf4 {[%clk 0:00:03.2]} 57... Kxe3 {[%clk
0:00:10.9]} 58. Kh3 {[%clk 0:00:03.8]} 58... Bxf3 {[%clk 0:00:10.7]} 59. Rf6
{[%clk 0:00:03.8]} 59... Rb5 {[%clk 0:00:09.1]} 60. g4 {[%clk 0:00:03.6]} 60...
Rg5 {[%clk 0:00:06.7]} 61. Re6+ {[%clk 0:00:01.7]} 61... Kf2 {[%clk 0:00:04.1]}
62. Re7 {[%clk 0:00:02.6]} 62... Rxg4 {[%clk 0:00:03.6]} 63. Re5 {[%clk
0:00:02.2]} 1-0